[Event "9th Sharjah Cup Women 2018"]
[Site "Sharjah"]
[Date "2018.12.15"]
[Round "2"]
[White "Zozulia, Anna"]
[Black "Almaini, Aishah Sarhan"]
[Result "1-0"]
[ECO "B06"]
[WhiteElo "2270"]
[BlackElo "1614"]
[Annotator "NA"]
[PlyCount "191"]
[EventDate "2018.12.14"]
[EventType "swiss"]
[EventCountry "UAE"]
[SourceTitle "playchess.com"]
[Source "ChessBase"]
[SourceQuality "1"]
[TimeControl "5400+30"]

1. e4 {[%emt 0:00:00]} g6 {[%emt 0:05:13]} 2. d4 {[%emt 0:00:00]} Bg7 {[%emt 0:00:08]} 3. Nf3 {[%emt 0:00:28]} d6 {[%emt 0:00:16]} 4. c3 {[%emt 0:01:39]} Nd7 {[%emt 0:05:47]} 5. Bd3 {[%emt 0:09:05]} e5 {[%emt 0:03:59]} 6. O-O {[%emt 0:01:05] B06: Modern Defence} Ne7 {[%emt 0:00:19]} 7. Nbd2 {[%emt 0:02:22]} O-O {[%emt 0:00:21]} 8. Re1 {[%emt 0:06:07]} (8. a4 h6 9. Qc2 exd4 10. cxd4 Nc6 11. Nb3 Nb4 12. Qd1 Nxd3 13. Qxd3 d5 {½-½ (31) Miton,K (2584)-Naiditsch,A (2705) Riadh 2017}) 8... Nc6 {[%emt 0:03:45] LiveBook: 24 Games} 9. dxe5 {[%emt 0:06:28]} dxe5 $146 {[%emt 0:02:18]} ({Predecessor:} 9... Ndxe5 10. Bf1 Re8 11. Nxe5 Nxe5 12. Nc4 Bg4 13. f3 Be6 14. Nxe5 Bxe5 15. Be3 c5 16. f4 {½-½ (55) Sklyarov,D (2437)-Luukkonen,T (2354) Hamina 2016}) 10. Bb5 {[%emt 0:10:40]} Ndb8 {[%emt 0:08:22]} 11. Nf1 {[%emt 0:15:30]} Ne7 {[%emt 0:15:18]} 12. Bg5 {[%emt 0:10:31]} Qxd1 {[%emt 0:10:49]} 13. Raxd1 {[%emt 0:00:32]} Nbc6 {[%emt 0:00:07]} 14. Ne3 {[%emt 0:06:31]} h6 {[%emt 0:02:55]} 15. Bh4 {[%emt 0:04:22]} g5 {[%emt 0:02:29]} 16. Bg3 {[%emt 0:00:05]} a6 {[%emt 0:06:12]} 17. Bxc6 {[%emt 0:06:59]} Nxc6 {[%emt 0:03:28]} 18. h4 {[%emt 0:00:08]} (18. Nd5 $16) 18... f6 {[%emt 0:01:47]} 19. hxg5 {[%emt 0:01:25]} hxg5 {[%emt 0:00:39]} 20. Nd5 {[%emt 0:00:03]} Rf7 $1 {[%emt 0:00:14]} 21. Nd2 {[%emt 0:01:02]} Be6 {[%emt 0:00:51]} 22. Nc4 {[%emt 0:00:37]} b5 {[%emt 0:00:20]} 23. Nce3 {[%emt 0:00:24]} Rd8 {[%emt 0:00:25]} 24. f3 {[%emt 0:01:51]} Rfd7 {[%emt 0:00:22]} 25. Bf2 {[%emt 0:05:42]} Bxd5 {[%emt 0:03:38]} 26. Rxd5 {[%emt 0:01:25]} Ne7 {[%emt 0:01:18]} 27. Rxd7 {[%emt 0:01:52]} Rxd7 {[%emt 0:00:08]} 28. Kf1 {[%emt 0:01:22]} Kf7 {[%emt 0:00:06]} 29. Ke2 {[%emt 0:00:09]} Ke6 {[%emt 0:00:13]} 30. Nc2 {[%emt 0:02:12]} Nc6 {[%emt 0:01:44]} 31. Bc5 {[%emt 0:01:10]} Rd8 {[%emt 0:04:38]} 32. Ne3 {[%emt 0:01:23]} Bf8 {[%emt 0:00:06]} 33. Bxf8 {[%emt 0:00:20]} Rxf8 {[%emt 0:00:04]} 34. Nd5 {[%emt 0:00:44]} Rf7 {[%emt 0:00:06]} 35. Rh1 {[%emt 0:00:19]} Na5 {[%emt 0:01:27]} 36. Nb4 {[%emt 0:02:40]} Nc4 {[%emt 0:06:44]} 37. b3 {[%emt 0:00:04]} Nb6 {[%emt 0:01:15]} 38. Nxa6 {[%emt 0:00:18]} c6 {[%emt 0:00:09]} 39. Rd1 {[%emt 0:00:54]} Ra7 {[%emt 0:00:35]} 40. Nc5+ {[%emt 0:00:06]} Ke7 {[%emt 0:00:04]} 41. Rd2 {[%emt 0:00:08]} Ra8 {[%emt 0:01:40]} 42. Kd1 {[%emt 0:00:44]} Rg8 {[%emt 0:01:56]} 43. Ke2 {[%emt 0:01:12]} g4 {[%emt 0:00:07]} 44. Nd3 {[%emt 0:00:22]} gxf3+ {[%emt 0:00:12]} 45. gxf3 {[%emt 0:00:44]} Rg2+ {[%emt 0:00:07]} 46. Ke3 {[%emt 0:00:09]} Rxd2 {[%emt 0:00:16]} 47. Kxd2 {[%emt 0:00:04]} Kd6 {[%emt 0:00:05]} 48. Nf2 {[%emt 0:01:04]} c5 {[%emt 0:00:14]} 49. Ng4 {[%emt 0:00:11]} Nd7 {[%emt 0:00:05]} 50. Kd3 {[%emt 0:00:46]} Ke6 {[%emt 0:03:38]} 51. Ne3 {[%emt 0:00:49]} Nb6 {[%emt 0:00:10]} 52. c4 {[%emt 0:00:35]} b4 {[%emt 0:00:11]} 53. Nc2 {[%emt 0:00:17]} Kd6 {[%emt 0:00:48]} 54. a3 {[%emt 0:00:07]} bxa3 {[%emt 0:00:12]} 55. Nxa3 {[%emt 0:00:04]} Nd7 {[%emt 0:01:37]} 56. Nb5+ {[%emt 0:00:22]} Kc6 {[%emt 0:00:12]} 57. Nc3 {[%emt 0:00:23]} Kd6 {[%emt 0:00:30]} 58. Nd5 {[%emt 0:00:07]} Kc6 {[%emt 0:00:10]} ({Black should try} 58... Ke6 $14) 59. Kc3 {[%emt 0:00:37]} (59. Kd2 $18) 59... Kd6 {[%emt 0:00:39]} 60. b4 {[%emt 0:00:16]} cxb4+ {[%emt 0:00:09]} 61. Kxb4 {[%emt 0:00:04]} Kc6 {[%emt 0:00:07]} 62. Ne3 {[%emt 0:02:01]} Nc5 {[%emt 0:01:43]} 63. Ng4 {[%emt 0:00:36]} Nd7 {[%emt 0:01:40]} 64. Nh6 {[%emt 0:00:47]} Nc5 {[%emt 0:00:27]} 65. Ng8 {[%emt 0:00:46]} Nd3+ {[%emt 0:00:55]} 66. Kc3 {[%emt 0:00:03]} Ne1 {[%emt 0:00:06]} 67. Nxf6 {[%emt 0:00:20]} Nxf3 {[%emt 0:00:04]} 68. Ng4 {[%emt 0:00:47]} Kc5 {[%emt 0:00:16]} 69. Nf6 $11 {[%emt 0:00:51]} Nd4 {[%emt 0:01:43]} 70. Nd7+ {[%emt 0:00:24]} Kd6 {[%emt 0:00:14]} 71. Nb6 {[%emt 0:00:09]} Ne2+ {[%emt 0:01:22]} 72. Kd3 {[%emt 0:00:26]} Nf4+ {[%emt 0:00:14]} 73. Ke3 {[%emt 0:00:05]} Ne6 {[%emt 0:02:39]} 74. Na4 {[%emt 0:00:26]} Kc6 {[%emt 0:01:08]} 75. Kd3 {[%emt 0:00:51]} Nf4+ {[%emt 0:00:15]} 76. Kc3 {[%emt 0:00:12]} Ne2+ {[%emt 0:00:20]} 77. Kb4 {[%emt 0:00:13]} Nd4 {[%emt 0:02:08]} 78. Nb2 {[%emt 0:01:35]} Nf3 {[%emt 0:01:08]} 79. Kc3 {[%emt 0:00:38]} Kc5 {[%emt 0:00:16]} 80. Nd3+ {[%emt 0:00:07]} Kd6 {[%emt 0:00:57]} 81. c5+ {[%emt 0:00:50]} Kc6 {[%emt 0:00:11]} 82. Kb4 {[%emt 0:00:05]} Kc7 {[%emt 0:00:21]} 83. Kc4 {[%emt 0:00:20]} Kc6 {[%emt 0:00:11]} 84. Nb4+ {[%emt 0:00:05]} Kc7 {[%emt 0:00:19]} 85. Kd5 {[%emt 0:00:10]} Kb7 {[%emt 0:01:29]} 86. Nd3 {[%emt 0:00:16]} Kc7 {[%emt 0:00:38]} 87. Nxe5 {[%emt 0:00:40]} Ng5 {[%emt 0:00:10]} 88. Nd3 {[%emt 0:00:33]} Nf7 {[%emt 0:00:13]} 89. e5 {[%emt 0:01:10]} Nd8 {[%emt 0:00:10]} 90. Nb4 {[%emt 0:00:32]} Kd7 {[%emt 0:00:29]} 91. c6+ {[%emt 0:00:34]} Kc7 {[%emt 0:00:11]} 92. e6 {[%emt 0:00:17]} Nxe6 {[%emt 0:00:18]} 93. Kxe6 {[%emt 0:00:04]} Kc8 {[%emt 0:00:04]} 94. Kd6 {[%emt 0:00:07]} Kd8 {[%emt 0:00:07]} 95. c7+ {[%emt 0:00:06]} Kc8 {[%emt 0:00:10]} 96. Nd3 {[%emt 0:00:04]} 1-0

[Event "9th Sharjah Cup Women 2018"]
[Site "Sharjah"]
[Date "2018.12.15"]
[Round "2"]
[White "Stetsko, Lanita"]
[Black "Boubendir, Nesrine"]
[Result "1-0"]
[ECO "B43"]
[WhiteElo "2194"]
[BlackElo "1510"]
[Annotator "NA"]
[PlyCount "76"]
[EventDate "2018.12.14"]
[EventType "swiss"]
[EventCountry "UAE"]
[SourceTitle "playchess.com"]
[Source "ChessBase"]
[SourceQuality "1"]
[TimeControl "5400+30"]

1. e4 {[%emt 0:00:00]} c5 {[%emt 0:00:00]} 2. Nf3 {[%emt 0:00:00]} e6 {[%emt 0:00:06]} 3. d4 {[%emt 0:00:00]} cxd4 {[%emt 0:00:28]} 4. Nxd4 {[%emt 0:00:00]} a6 {[%emt 0:00:56]} 5. Nc3 {[%emt 0:00:26]} Qc7 {[%emt 0:00:54]} 6. Bd3 {[%emt 0:00:18]} Nf6 {[%emt 0:03:04]} 7. O-O {[%emt 0:01:04]} Be7 {[%emt 0:02:49]} 8. Qe2 {[%emt 0:01:49]} d6 {[%emt 0:02:06]} 9. Kh1 {[%emt 0:00:21]} Nc6 {[%emt 0:05:27]} 10. Nxc6 {[%emt 0:13:02]} bxc6 {[%emt 0:02:15]} 11. f4 {[%emt 0:01:10]} e5 {[%emt 0:21:00]} 12. fxe5 {[%emt 0:18:56] B46: Sicilian: Taimanov: 5 Nc3 a6} (12. Bc4 O-O 13. f5 h6 14. g4 d5 15. Bb3 d4 16. Nd1 c5 17. Nf2 Bb7 18. Bc4 Nh7 19. Rg1 Bh4 20. Nh3 Nf6 21. g5 Nxe4 22. Rg2 Qc6 23. Qg4 Ng3+ {0-1 (23) Kaasen,T (2442)-Andreikin,D (2734) chess.com INT 2017}) 12... dxe5 {[%emt 0:00:09]} 13. Bc4 {[%emt 0:01:16] LiveBook: 4 Games} O-O {[%emt 0:04:20]} 14. Be3 {[%emt 0:00:52]} (14. h3 $14) 14... a5 {[%emt 0:07:46]} 15. Na4 $146 {[%emt 0:05:08]} ({Predecessor:} 15. h3 Rb8 16. Bb3 Be6 17. Bg5 Bxb3 18. axb3 Rb4 19. Rf3 Rd8 20. Bxf6 Bxf6 {1-0 (31) Llaneza Vega,M (2426)-Lymar,I (2264) Pamplona 2007}) 15... Rb8 {[%emt 0:06:50]} 16. Nc5 {[%emt 0:05:05]} Bxc5 {[%emt 0:07:00]} 17. Bxc5 {[%emt 0:02:10]} Rd8 {[%emt 0:00:41]} 18. b3 {[%emt 0:09:50]} Bg4 {[%emt 0:07:13]} 19. Qe1 {[%emt 0:02:48]} Bh5 {[%emt 0:03:32]} 20. Qh4 {[%emt 0:05:38]} Bg6 {[%emt 0:00:46]} 21. Rae1 {[%emt 0:00:39]} Qd7 {[%emt 0:06:57]} (21... Nh5 $14) 22. Bd3 {[%emt 0:05:08]} (22. Rxf6 $16 gxf6 23. Qxf6) 22... Qg4 {[%emt 0:04:28]} 23. Qxg4 {[%emt 0:00:49]} Nxg4 {[%emt 0:00:06]} 24. h3 {[%emt 0:00:24]} Nf6 $16 {[%emt 0:00:12]} 25. Be7 {[%emt 0:00:27] Double Attack} Nh5 {[%emt 0:04:07]} 26. Bxd8 {[%emt 0:01:00]} Ng3+ {[%emt 0:00:10]} 27. Kg1 {[%emt 0:00:29]} Nxf1 {[%emt 0:00:18]} 28. Bc7 {[%emt 0:01:09]} Rc8 {[%emt 0:00:46]} 29. Bxe5 {[%emt 0:00:12]} Nd2 {[%emt 0:00:43]} 30. Bc3 {[%emt 0:00:06]} Nxe4 {[%emt 0:01:39]} 31. Bxe4 {[%emt 0:00:07]} Re8 {[%emt 0:01:59]} 32. Bxg6 {[%emt 0:00:11]} Rxe1+ {[%emt 0:00:07]} 33. Bxe1 {[%emt 0:00:01]} fxg6 {[%emt 0:00:09]} 34. Bxa5 {[%emt 0:00:04]} Kf7 {[%emt 0:00:12]} 35. Bc3 {[%emt 0:00:08]} g5 {[%emt 0:00:12]} 36. a4 {[%emt 0:00:03]} g6 {[%emt 0:00:08]} 37. a5 {[%emt 0:00:03]} Ke6 {[%emt 0:00:05]} 38. a6 {[%emt 0:00:03]} Kd5 1-0

[Event "9th Sharjah Cup Women 2018"]
[Site "Sharjah"]
[Date "2018.12.15"]
[Round "2"]
[White "Babayan, Armine"]
[Black "Al Ali, Aisha Saif"]
[Result "1-0"]
[ECO "B83"]
[WhiteElo "2189"]
[BlackElo "1401"]
[Annotator "NA"]
[PlyCount "55"]
[EventDate "2018.12.14"]
[EventType "swiss"]
[EventCountry "UAE"]
[SourceTitle "playchess.com"]
[Source "ChessBase"]
[SourceQuality "1"]
[TimeControl "5400+30"]

{[%evp 10,41,30,18,32767,32767,32767,32767,32767,32767,4,-20,64,-6,35,0,0,-4,10,-6,32767,32767,59,25,179,4,-20,25,32767,32767,32767,133,226,331]} 1. e4 {[%emt 0:00:00]} c5 {[%emt 0:00:00]} 2. Nf3 {[%emt 0:00:00]} e6 {[%emt 0:00:18]} 3. d4 {[%emt 0:00:00]} cxd4 {[%emt 0:00:21]} 4. Nxd4 {[%emt 0:00:00]} Nf6 {[%emt 0:00:09]} 5. Nc3 {[%emt 0:00:11]} d6 {[%emt 0:00:35]} 6. Be2 {[%emt 0:00:18] LiveBook: 3473 Games} Be7 {[%emt 0:01:13]} 7. Be3 {[%emt 0:00:16]} O-O {[%emt 0:00:45]} 8. Qd2 {[%emt 0:00:17]} a6 {[%emt 0:00:40]} 9. g4 {[%emt 0:00:38] B84: Sicilian Scheveningen: 6 Be2 a6, lines without early Be3} b5 {[%emt 0:02:33]} 10. g5 {[%emt 0:00:21]} Nfd7 {[%emt 0:00:59]} ({Black should try} 10... b4 $11 11. gxf6 bxc3 12. Qxc3 Bxf6) 11. f4 {[%emt 0:00:25]} (11. a3 $14) 11... Bb7 {[%emt 0:02:13]} 12. Bf3 {[%emt 0:01:29]} Nb6 $146 {[%emt 0:05:00]} ({Predecessor:} 12... Nc6 13. Nxc6 Bxc6 14. O-O-O Nb6 15. b3 Rb8 16. Rhf1 d5 17. Bxb6 Qxb6 18. exd5 {½-½ (33) Varga,Z (2479)-Nisipeanu,L (2692) Eforie Nord 2008}) 13. b3 {[%emt 0:01:36]} N8d7 {[%emt 0:02:14]} 14. O-O {[%emt 0:05:01]} Nc5 {[%emt 0:09:00]} 15. Qg2 {[%emt 0:01:50]} Re8 {[%emt 0:16:21]} 16. f5 {[%emt 0:10:45]} Bf8 $2 {[%emt 0:07:44]} (16... b4 $11 {and Black is okay.} 17. fxe6 fxe6) 17. f6 {[%emt 0:07:54]} (17. g6 $16 fxg6 18. fxg6) 17... g6 {[%emt 0:04:30]} 18. h4 $1 {[%emt 0:04:51]} e5 {[%emt 0:01:30]} 19. Nde2 {[%emt 0:02:08]} Ne6 {[%emt 0:01:21]} 20. h5 {[%emt 0:03:03]} b4 $18 {[%emt 0:05:41]} 21. hxg6 {[%emt 0:03:52]} fxg6 {[%emt 0:04:08]} 22. Nd5 {[%emt 0:12:48]} Nxd5 {[%emt 0:01:23]} 23. exd5 {[%emt 0:00:05]} Nc5 {[%emt 0:01:00]} 24. Be4 {[%emt 0:01:11]} Kh8 {[%emt 0:02:34]} 25. Bxg6 {[%emt 0:00:25]} hxg6 {[%emt 0:00:20]} 26. Qh3+ {[%emt 0:00:09]} Kg8 {[%emt 0:00:14]} 27. f7+ {[%emt 0:00:05]} Kg7 {[%emt 0:00:08]} 28. Qh6# {[%emt 0:00:05]} 1-0

[Event "9th Sharjah Cup Women 2018"]
[Site "Sharjah"]
[Date "2018.12.15"]
[Round "2"]
[White "Berke, Ana"]
[Black "Khezrian, Nooralzahra"]
[Result "1-0"]
[ECO "A01"]
[WhiteElo "2151"]
[BlackElo "1317"]
[Annotator "NA"]
[PlyCount "75"]
[EventDate "2018.12.14"]
[EventType "swiss"]
[EventCountry "UAE"]
[SourceTitle "playchess.com"]
[Source "ChessBase"]
[SourceQuality "1"]
[TimeControl "5400+30"]

1. b3 {[%emt 0:00:00]} b6 {[%emt 0:01:03]} 2. Bb2 {[%emt 0:00:10]} Bb7 {[%emt 0:00:29]} 3. c4 {[%emt 0:01:19]} c5 {[%emt 0:05:06]} 4. d3 {[%emt 0:01:42]} e6 {[%emt 0:01:33]} 5. Nc3 {[%emt 0:02:49]} Nf6 {[%emt 0:01:40]} 6. e4 {[%emt 0:01:56]} d5 {[%emt 0:01:06]} 7. e5 {[%emt 0:02:30]} Nfd7 {[%emt 0:02:48]} 8. f4 {[%emt 0:00:48]} (8. cxd5 $1 $15 exd5 9. f4) 8... dxc4 {[%emt 0:10:50]} (8... d4 $17 9. Ne4 Bxe4 10. dxe4 g5) 9. dxc4 {[%emt 0:02:04]} Qh4+ {[%emt 0:05:36]} 10. g3 {[%emt 0:00:58]} Qd8 {[%emt 0:00:06]} 11. Nf3 {[%emt 0:00:40]} Nc6 {[%emt 0:01:19]} 12. Bg2 {[%emt 0:01:14]} a6 {[%emt 0:02:59]} 13. O-O {[%emt 0:00:35]} Be7 {[%emt 0:01:11]} 14. Qe2 {[%emt 0:02:58]} Qc7 {[%emt 0:01:29]} (14... O-O $16) 15. Ne4 {[%emt 0:02:13]} O-O-O {[%emt 0:03:44]} (15... O-O $16 {is a better defense.} 16. Rad1 Rad8) 16. Kh1 {[%emt 0:02:07]} (16. Nfg5 $18 {and White stays clearly on top.} Rdf8 {[#]} 17. Nd6+ $1 {[%mdl 512]} Bxd6 18. exd6 {[%mdl 64] Discovered Attack} Qxd6 19. Bxg7 {[%mdl 64] Double Attack}) 16... h6 {[%emt 0:06:54]} 17. Rad1 {[%emt 0:02:53]} Ndb8 {[%emt 0:01:32]} 18. h3 {[%emt 0:05:51]} Rd7 {[%emt 0:04:03]} 19. Rxd7 {[%emt 0:00:34]} Qxd7 {[%emt 0:00:07]} 20. Rd1 {[%emt 0:01:13]} Qc7 {[%emt 0:03:27]} 21. Qd2 $16 {[%emt 0:05:40]} Qd8 {[%emt 0:11:57]} 22. Qe1 {[%emt 0:02:12]} Qf8 {[%emt 0:05:02]} 23. a3 {[%emt 0:03:03]} f5 {[%emt 0:02:37]} 24. exf6 {[%emt 0:01:59]} gxf6 {[%emt 0:00:48]} 25. Nxf6 {[%emt 0:02:34]} Nd4 {[%emt 0:08:43]} 26. Bxd4 {[%emt 0:00:42]} cxd4 {[%emt 0:01:19]} 27. Qxe6+ {[%emt 0:00:21]} Kc7 {[%emt 0:00:34]} 28. Nd5+ {[%emt 0:00:24]} Bxd5 {[%emt 0:00:23]} 29. Qxd5 {[%emt 0:00:20]} Bxa3 {[%emt 0:01:02]} 30. Nxd4 {[%emt 0:00:26]} Qe7 {[%emt 0:03:33]} 31. Qb7+ {[%emt 0:00:43]} Kd8 {[%emt 0:00:16]} 32. Nc6+ {[%emt 0:00:16]} Ke8 {[%emt 0:00:09]} 33. Nxe7 {[%emt 0:00:10]} Bxe7 {[%emt 0:00:10]} 34. Qxb8+ {[%emt 0:00:07]} Kf7 {[%emt 0:00:07]} 35. Qxh8 {[%emt 0:00:05]} Bc5 {[%emt 0:00:07]} 36. Qxh6 {[%emt 0:00:11]} Bb4 {[%emt 0:00:07]} 37. Rd7+ {[%emt 0:00:04]} Ke8 {[%emt 0:00:06]} 38. Qe6+ {[%emt 0:00:08]} 1-0

[Event "9th Sharjah Cup Women 2018"]
[Site "Sharjah"]
[Date "2018.12.15"]
[Round "2"]
[White "Bauyrzhan, Arnash"]
[Black "Szczepkowska, Karina"]
[Result "0-1"]
[ECO "C55"]
[WhiteElo "1978"]
[BlackElo "2408"]
[Annotator "ChessBase"]
[PlyCount "112"]
[EventDate "2018.12.14"]
[EventType "swiss"]
[EventCountry "UAE"]
[SourceTitle "playchess.com"]
[Source "ChessBase"]
[SourceQuality "1"]
[TimeControl "5400+30"]

1. e4 {[%emt 0:00:00]} e5 {[%emt 0:00:00]} 2. Nf3 {[%emt 0:00:00]} Nc6 {[%emt 0:00:00]} 3. Bc4 {[%emt 0:00:34]} Nf6 {[%emt 0:00:00]} 4. d3 {[%emt 0:00:16]} Be7 {[%emt 0:00:00]} 5. O-O {[%emt 0:00:38]} O-O {[%emt 0:00:13]} 6. Re1 {[%emt 0:01:59]} d6 {[%emt 0:00:51]} 7. a4 {[%emt 0:02:18]} Na5 {[%emt 0:02:42]} 8. Ba2 {[%emt 0:00:22]} c5 {[%emt 0:00:07]} 9. Na3 {[%emt 0:04:08]} Nc6 {[%emt 0:06:12]} 10. c3 {[%emt 0:01:04]} h6 {[%emt 0:04:01]} 11. Nc2 {[%emt 0:04:16]} Be6 {[%emt 0:03:31]} 12. Bxe6 {[%emt 0:24:46]} fxe6 {[%emt 0:00:26]} 13. b4 {[%emt 0:00:54]} Nd7 {[%emt 0:08:44]} 14. Be3 {[%emt 0:09:06]} Qe8 {[%emt 0:04:21]} 15. bxc5 {[%emt 0:08:55]} dxc5 {[%emt 0:03:15]} 16. Na3 {[%emt 0:06:44]} Na5 {[%emt 0:07:24]} 17. Nd2 {[%emt 0:01:04]} Qg6 {[%emt 0:07:23]} 18. Nac4 {[%emt 0:03:32]} Nc6 {[%emt 0:00:18]} 19. Qb3 {[%emt 0:02:32]} Rab8 {[%emt 0:00:15]} 20. Reb1 {[%emt 0:04:42]} Kh8 {[%emt 0:04:57]} 21. Qd1 {[%emt 0:00:36]} b6 {[%emt 0:02:41]} 22. Ra2 {[%emt 0:03:45]} Bd8 {[%emt 0:01:02]} 23. Rab2 {[%emt 0:01:37]} a6 {[%emt 0:04:21]} 24. Nf3 {[%emt 0:01:53]} Bc7 {[%emt 0:03:06]} 25. Nh4 {[%emt 0:01:19]} Qf7 {[%emt 0:00:47]} 26. Qg4 {[%emt 0:04:16]} Kh7 {[%emt 0:01:50]} 27. Qh3 {[%emt 0:03:55]} Qf6 {[%emt 0:07:02]} 28. Nf3 {[%emt 0:02:06]} Kg8 {[%emt 0:00:30]} 29. Qg3 {[%emt 0:00:51]} Rb7 {[%emt 0:01:59]} 30. h3 {[%emt 0:02:57]} Rfb8 {[%emt 0:01:38]} 31. Nh2 {[%emt 0:00:47]} Kh7 {[%emt 0:02:14]} 32. Ng4 {[%emt 0:01:37]} Qg6 {[%emt 0:01:00]} 33. Na3 {[%emt 0:00:26]} Na7 {[%emt 0:02:42]} 34. Nh2 {[%emt 0:01:36]} Qxg3 {[%emt 0:06:29]} 35. fxg3 {[%emt 0:00:02]} b5 {[%emt 0:00:10]} 36. axb5 {[%emt 0:00:07]} axb5 {[%emt 0:00:09]} 37. Nf3 {[%emt 0:01:50]} Kg8 {[%emt 0:06:39]} 38. Kf2 {[%emt 0:00:44]} Kf7 {[%emt 0:00:45]} 39. Ke2 {[%emt 0:00:07]} Ke7 {[%emt 0:01:10]} 40. g4 {[%emt 0:00:45]} Kd6 {[%emt 0:02:49]} 41. g5 {[%emt 0:00:30]} h5 {[%emt 0:00:37]} 42. Bf2 {[%emt 0:00:19]} Kc6 {[%emt 0:01:01]} 43. Bg3 {[%emt 0:00:38]} Rb6 {[%emt 0:01:57]} 44. Nc2 {[%emt 0:00:38]} Ra6 {[%emt 0:00:56]} 45. Ra1 {[%emt 0:00:23]} Rxa1 {[%emt 0:00:48]} 46. Nxa1 {[%emt 0:00:01]} Nc8 {[%emt 0:00:28]} 47. Nc2 {[%emt 0:00:25]} Ra8 {[%emt 0:00:43]} 48. Kd2 {[%emt 0:00:32]} Ncb6 {[%emt 0:00:31]} 49. Ne3 {[%emt 0:01:16]} Ra3 {[%emt 0:00:44]} 50. Kc2 {[%emt 0:00:37]} Na4 {[%emt 0:00:34]} 51. Rb3 {[%emt 0:00:17]} Ra2+ {[%emt 0:00:26]} 52. Kd1 {[%emt 0:00:47]} Nb2+ {[%emt 0:00:35]} 53. Kc1 {[%emt 0:00:02]} Nxd3+ {[%emt 0:00:09]} 54. Kd1 {[%emt 0:00:18]} c4 {[%emt 0:00:50]} 55. Rb1 {[%emt 0:00:07]} N7c5 {[%emt 0:00:09]} 56. Nd2 {[%emt 0:01:20]} Na4 {[%emt 0:00:11]} 0-1

[Event "9th Sharjah Cup Women 2018"]
[Site "Sharjah"]
[Date "2018.12.15"]
[Round "2"]
[White "Al Maamari, Wafia Darwish"]
[Black "Gevorgyan, Irina"]
[Result "0-1"]
[ECO "D00"]
[WhiteElo "1829"]
[BlackElo "2301"]
[Annotator "ChessBase"]
[PlyCount "64"]
[EventDate "2018.12.14"]
[EventType "swiss"]
[EventCountry "UAE"]
[SourceTitle "playchess.com"]
[Source "ChessBase"]
[SourceQuality "1"]
[TimeControl "5400+30"]

1. d4 {[%emt 0:00:00]} d5 {[%emt 0:00:00]} 2. Bf4 {[%emt 0:00:00]} c6 {[%emt 0:01:40]} 3. c3 {[%emt 0:00:47]} Nf6 {[%emt 0:00:19]} 4. e3 {[%emt 0:00:29]} Bf5 {[%emt 0:01:07]} 5. Nd2 {[%emt 0:01:08]} Nbd7 {[%emt 0:01:09]} 6. Be2 {[%emt 0:02:46]} g6 {[%emt 0:05:47]} 7. g4 {[%emt 0:07:05]} Be6 {[%emt 0:00:09]} 8. h3 {[%emt 0:11:40]} h5 {[%emt 0:02:25]} 9. g5 {[%emt 0:02:53]} Ne4 {[%emt 0:00:21]} 10. Nxe4 {[%emt 0:01:14]} dxe4 {[%emt 0:00:13]} 11. f3 {[%emt 0:01:20]} Bf5 {[%emt 0:03:13]} 12. h4 {[%emt 0:06:38]} Bg7 {[%emt 0:00:43]} 13. Nh3 {[%emt 0:03:07]} e5 {[%emt 0:08:58]} 14. Bg3 {[%emt 0:04:29]} exd4 {[%emt 0:03:16]} 15. exd4 {[%emt 0:01:28]} Qe7 {[%emt 0:05:30]} 16. Kf2 {[%emt 0:02:23]} O-O {[%emt 0:02:38]} 17. fxe4 {[%emt 0:01:34]} Bxh3 {[%emt 0:16:02]} 18. Rxh3 {[%emt 0:00:58]} Qxe4 {[%emt 0:00:08]} 19. Bd3 {[%emt 0:02:13]} Qe6 {[%emt 0:00:25]} 20. Rh1 {[%emt 0:00:46]} c5 {[%emt 0:01:09]} 21. dxc5 {[%emt 0:06:05]} Nxc5 {[%emt 0:00:45]} 22. Qc2 {[%emt 0:07:23]} Rad8 {[%emt 0:01:14]} 23. Rhd1 {[%emt 0:02:28]} Rfe8 {[%emt 0:10:24]} 24. Bb5 {[%emt 0:03:31]} Ne4+ {[%emt 0:05:55]} 25. Kg2 {[%emt 0:00:37]} Qg4 {[%emt 0:00:22]} 26. Bxe8 {[%emt 0:05:12]} Qxg3+ {[%emt 0:00:12]} 27. Kf1 {[%emt 0:00:08]} Rxe8 {[%emt 0:01:40]} 28. Re1 {[%emt 0:01:06]} Qf3+ {[%emt 0:00:34]} 29. Kg1 {[%emt 0:00:07]} Bf8 {[%emt 0:00:28]} 30. b4 {[%emt 0:00:51]} Bg7 {[%emt 0:03:29]} 31. Rad1 {[%emt 0:00:40]} Bxc3 {[%emt 0:03:04]} 32. Rd3 {[%emt 0:00:27]} Qg4+ {[%emt 0:00:07]} 0-1